bitfinex-derivatives/quotes_BNBF0:USTF0_20260110
["timestamp","ask_amount","ask_price","bid_price","bid_amount"]
[1768067679355,2.72679797,910.46,908.66,0.69541662]
[1768067679555,2.72679797,910.46,908.67,0.69541662]
[1768067679854,2.72679797,910.47,908.68,0.69541662]
[1768067680056,2.72679797,910.47,908.69,0.69541662]
[1768067680256,2.72679797,910.47,908.7,0.69541662]
[1768067680458,2.72679797,910.48,908.71,0.69541662]
[1768067680651,2.72679797,910.48,908.72,0.69541662]
[1768067680856,2.72679797,910.48,908.6,1.639]
[1768067680857,2.72679797,910.48,908.73,0.69541662]
[1768067681052,2.72679797,910.48,908.74,0.69541662]
[1768067681352,2.72679797,910.48,908.75,0.69541662]
[1768067681556,2.72679797,910.49,908.76,0.69541662]
[1768067681852,2.72679797,910.49,908.77,0.69541662]
[1768067682055,2.72679797,910.49,908.78,0.69541662]
[1768067682254,2.72679797,910.49,908.79,0.69541662]
[1768067682454,2.72679797,910.49,908.8,0.69541662]
[1768067682753,2.72679797,910.49,908.81,0.69541662]
[1768067682954,2.72679797,910.49,908.82,0.69541662]
[1768067683155,2.72679797,910.49,908.83,0.69541662]
[1768067683356,2.72679797,910.49,908.84,0.69541662]
[1768067683558,2.72679797,910.48,908.85,0.69541662]
[1768067683758,2.72679797,910.48,908.86,0.69541662]
[1768067683964,2.72679797,910.48,908.87,0.69541662]
[1768067684155,2.72679797,910.48,908.6,1.639]
[1768067684455,2.72679797,910.42,908.61,0.69538263]
[1768067684655,2.72679797,910.42,908.6,1.639]
[1768067684656,2.72679797,910.42,908.62,0.69538263]
[1768067684853,2.72679797,910.42,908.63,0.69538263]
[1768067685057,2.72679797,910.42,908.64,0.69538263]
[1768067685259,2.72679797,910.42,908.65,0.69538263]
[1768067685459,2.72679797,910.42,908.66,0.69538263]
[1768067685657,2.72679797,910.42,908.67,0.69538263]
[1768067685857,2.72679797,910.42,908.68,0.69538263]
[1768067686057,2.72679797,910.42,908.69,0.69538263]
[1768067686261,2.72679797,910.42,908.7,0.69538263]
[1768067686457,2.72679797,910.42,908.71,0.69538263]
[1768067686757,2.72679797,910.42,908.72,0.69538263]
[1768067687062,2.72679797,910.42,908.73,0.69538263]
[1768067687262,2.72679797,910.42,908.74,0.69538263]
[1768067687468,2.72679797,910.42,908.75,0.69550842]
[1768067687658,2.72679797,910.42,908.76,0.69550842]
[1768067687859,2.72679797,910.41,908.77,0.69550842]
[1768067688059,2.72679797,910.41,908.78,0.69550842]
[1768067688264,2.72679797,910.41,908.79,0.69550842]
[1768067688459,2.72679797,910.41,908.8,0.69550842]
[1768067688668,2.72679797,910.41,908.81,0.69550842]
[1768067688868,2.72679797,910.41,908.82,0.69550842]
[1768067689064,2.72679797,910.41,908.83,0.69550842]
[1768067689264,2.72679797,910.41,908.6,1.639]
[1768067689460,2.72679797,910.41,908.61,0.69563983]
[1768067689659,2.72679797,910.41,908.62,0.69563983]
[1768067689868,2.72679797,910.41,908.63,0.69563983]
[1768067690160,2.72679797,910.41,908.64,0.69563983]
[1768067690368,2.72679797,910.41,908.65,0.69563983]
[1768067690667,2.72679797,910.41,908.66,0.69563983]
[1768067690868,2.72679797,910.4,908.67,0.69563983]
[1768067691063,2.72679797,910.4,908.68,0.69563983]
[1768067691262,2.72679797,910.4,908.69,0.69563983]
[1768067691465,2.72679797,910.4,908.7,0.69563983]
[1768067691761,2.72679797,910.4,908.71,0.69563983]
[1768067691962,2.72679797,910.4,908.72,0.69563983]
[1768067692162,2.72679797,910.4,908.73,0.69563983]
[1768067692361,2.72679797,910.4,908.74,0.69563983]
[1768067692566,2.72679797,910.4,908.75,0.69563983]
[1768067692766,2.72679797,910.4,908.6,1.639]
[1768067692767,2.72679797,910.4,908.76,0.69563983]
[1768067692964,2.72679797,910.4,908.77,0.69563983]
[1768067693167,2.72679797,910.4,908.78,0.69563983]
[1768067693365,2.72679797,910.4,908.79,0.69563983]
[1768067693664,2.72679797,910.4,908.8,0.69563983]
[1768067693867,2.72679797,910.4,908.81,0.69563983]
[1768067694068,2.72679797,910.4,908.6,1.639]
[1768067694069,2.72679797,910.4,908.82,0.69563983]
[1768067694266,2.72679797,910.4,908.83,0.69563983]
[1768067694473,2.72679797,910.41,908.84,0.69563983]
[1768067694662,2.72679797,910.41,908.85,0.69563983]
[1768067694865,2.72679797,910.41,908.86,0.69563983]
[1768067695169,2.72679797,910.41,908.6,1.639]
[1768067695468,2.72679797,910.41,908.61,0.695847]
[1768067695667,2.72679797,910.41,908.62,0.695847]
[1768067695865,2.72679797,910.41,908.63,0.695847]
[1768067696064,2.72679797,910.41,908.64,0.695847]
[1768067696266,2.72679797,910.41,908.65,0.695847]
[1768067696467,2.72679797,910.41,908.66,0.695847]
[1768067696771,2.72679797,910.4,908.67,0.695847]
[1768067696965,2.72679797,910.4,908.6,1.639]
[1768067696966,2.72679797,910.4,908.68,0.695847]
[1768067697170,2.72679797,910.4,908.69,0.695847]
[1768067697370,2.72679797,910.4,908.7,0.695847]
[1768067697670,2.72679797,910.4,908.71,0.695847]
[1768067697866,2.72679797,910.4,908.72,0.695847]
[1768067698068,2.72679797,910.4,908.73,0.695847]
[1768067698270,2.72679797,910.4,908.74,0.695847]
[1768067698466,2.72679797,910.4,908.75,0.695847]
[1768067698671,2.72679797,910.4,908.76,0.695847]
[1768067698873,2.72679797,910.4,908.77,0.695847]
[1768067699081,2.72679797,910.4,908.78,0.695847]
[1768067699271,2.72679797,910.4,908.79,0.695847]
[1768067699576,2.72679797,910.4,908.8,0.695847]
[1768067699876,2.72679797,910.4,908.81,0.695847]
[1768067700071,2.72679797,910.4,908.82,0.695847]
[1768067700368,2.72679797,910.4,908.83,0.695847]
[1768067700567,2.72679797,910.4,908.84,0.695847]
[1768067700768,2.72679797,910.4,908.85,0.695847]
[1768067700968,2.72679797,910.4,908.86,0.695847]
[1768067701176,2.72679797,910.4,908.6,1.639]
[1768067701475,2.72679797,910.4,908.61,0.69589363]
[1768067701679,2.72679797,910.4,908.62,0.69589363]
[1768067701873,2.72679797,910.4,908.63,0.69589363]
[1768067702066,2.72679797,910.4,908.64,0.69589363]
[1768067702270,2.72679797,910.4,908.6,1.639]
[1768067702271,2.72679797,910.4,908.65,0.69589363]
[1768067702477,2.72679797,910.4,908.66,0.69589363]
[1768067702668,2.72679797,910.4,908.67,0.69589363]
[1768067702967,2.72679797,910.4,908.68,0.69589363]
[1768067703277,2.72679797,910.4,908.69,0.69589363]
[1768067703470,2.72679797,910.4,908.7,0.69589363]
[1768067703670,2.72679797,910.4,908.71,0.69589363]
[1768067703868,2.72679797,910.4,908.72,0.69589363]
[1768067704067,2.72679797,910.4,908.73,0.69589363]
[1768067704268,2.72679797,910.4,908.74,0.69589363]
[1768067704472,2.72679797,910.39,908.75,0.69589363]
[1768067704669,2.72679797,910.39,908.76,0.69589363]
[1768067704871,2.72679797,910.39,908.77,0.69589363]
[1768067705070,2.72679797,910.39,908.78,0.69589363]
[1768067705273,2.72679797,910.39,908.79,0.69589363]
[1768067705476,2.72679797,910.39,908.8,0.69589363]
[1768067705674,2.72679797,910.39,908.81,0.69589363]
[1768067705978,2.72679797,910.39,908.6,1.639]
[1768067705979,2.72679797,910.39,908.82,0.69589363]
[1768067706179,2.72679797,910.39,908.83,0.69589363]
[1768067706372,2.72679797,910.39,908.84,0.69589363]
[1768067706575,2.72679797,910.39,908.85,0.69589363]
[1768067706776,2.72679797,910.39,908.86,0.69589363]
[1768067706974,2.72679797,910.39,908.6,1.639]
[1768067707279,2.72679797,910.39,908.61,0.69562958]
[1768067707477,2.72679797,910.39,908.62,0.69562958]
[1768067707772,2.72679797,910.39,908.63,0.69562958]
[1768067707978,2.72679797,910.39,908.64,0.69562958]
[1768067708177,2.72679797,910.39,908.65,0.69562958]
[1768067708373,2.72679797,910.39,908.66,0.69562958]
[1768067708580,2.72679797,910.38,908.67,0.69562958]
[1768067708773,2.72679797,910.38,908.68,0.69562958]
[1768067708981,2.72679797,910.38,908.69,0.69562958]
[1768067709176,2.72679797,910.38,908.7,0.69562958]
[1768067709381,2.72679797,910.38,908.71,0.69562958]
[1768067709574,2.72679797,910.38,908.72,0.69562958]
[1768067709782,2.72679797,910.38,908.73,0.69562958]
[1768067709982,2.72679797,910.38,908.74,0.69562958]
[1768067710276,2.72679797,910.38,908.75,0.69562958]
[1768067710581,2.72679797,910.38,908.6,1.639]
[1768067710582,2.72679797,910.38,908.76,0.69562958]
[1768067710882,2.72679797,910.38,908.77,0.69562958]
[1768067711180,2.72679797,910.38,908.78,0.69562958]
[1768067711477,2.72679797,910.38,908.79,0.69562958]
[1768067711684,2.72679797,910.38,908.8,0.69562958]
[1768067711878,2.72679797,910.38,908.81,0.69562958]
[1768067712184,2.72679797,910.38,908.82,0.69562958]
[1768067712385,2.72679797,910.38,908.83,0.69562958]
[1768067712581,2.72679797,910.38,908.6,1.639]
[1768067712582,2.72679797,910.38,908.84,0.69562958]
[1768067712779,2.72679797,910.38,908.85,0.69562958]
[1768067712983,2.72679797,910.38,908.86,0.69562958]
[1768067713278,2.72679797,910.38,908.6,1.639]
[1768067713482,2.72679797,910.38,908.61,0.69583515]
[1768067713678,2.72679797,910.38,908.62,0.69583515]
[1768067713981,2.72679797,910.38,908.63,0.69583515]
[1768067714183,2.72679797,910.38,908.64,0.69583515]
[1768067714488,2.72679797,910.29,908.65,0.69583515]
[1768067714683,2.72679797,910.29,908.66,0.69583515]
[1768067714881,2.72679797,910.28,908.67,0.69583515]
[1768067715080,2.72679797,910.28,908.68,0.69583515]
[1768067715287,2.72679797,910.28,908.69,0.69583515]
[1768067715480,2.72679797,910.28,908.7,0.69583515]
[1768067715688,2.72679797,910.28,908.71,0.69583515]
[1768067715881,2.72679797,910.28,908.72,0.69583515]
[1768067716187,2.72679797,910.28,908.73,0.69583515]
[1768067716380,2.72679797,910.28,908.74,0.69583515]
[1768067716580,2.72679797,910.28,908.75,0.69583515]
[1768067716780,2.72679797,910.28,908.6,1.639]
[1768067717080,2.72679797,910.2,908.61,0.69603725]
[1768067717280,2.72679797,910.2,908.62,0.69603725]
[1768067717489,2.72679797,910.2,908.63,0.69603725]
[1768067717688,2.72679797,910.2,908.64,0.69603725]
[1768067717881,2.72679797,910.2,908.65,0.69603725]
[1768067718181,2.72679797,910.2,908.66,0.69603725]
[1768067718383,2.72679797,910.2,908.67,0.69603725]
[1768067718582,2.72679797,910.2,908.68,0.69603725]
[1768067718787,2.72679797,910.2,908.69,0.69603725]
[1768067718982,2.72679797,910.2,908.7,0.69603725]
[1768067719181,2.72679797,910.2,908.71,0.69603725]
[1768067719482,2.72679797,910.2,908.6,1.639]
[1768067719686,2.72679797,910.2,908.61,0.69607376]
[1768067719883,2.72679797,910.2,908.62,0.69607376]
[1768067720083,2.72679797,910.2,908.63,0.69607376]
[1768067720383,2.72679797,910.2,908.64,0.69607376]
[1768067720586,2.72679797,910.2,908.65,0.69607376]
[1768067720786,2.72679797,910.2,908.66,0.69607376]
[1768067720986,2.72679797,910.2,908.67,0.69607376]
[1768067721186,2.72679797,910.2,908.68,0.69607376]
[1768067721387,2.72679797,910.2,908.69,0.69607376]
[1768067721589,2.72679797,910.2,908.7,0.69607376]
[1768067721883,2.72679797,910.2,908.71,0.69607376]
[1768067722089,2.72679797,910.2,908.58,7.12123728]
[1768067722285,2.72679797,910.2,908.59,0.69606255]
[1768067722489,2.72679797,910.2,908.6,0.69606255]
[1768067722686,2.72679797,910.2,908.61,0.69606255]
[1768067722887,2.72679797,910.2,908.62,0.69606255]
[1768067723089,2.72679797,910.2,908.63,0.69606255]
[1768067723289,2.72679797,910.2,908.64,0.69606255]
[1768067723491,2.72679797,910.2,908.65,0.69606255]
[1768067723689,2.72679797,910.2,908.66,0.69606255]
[1768067723887,2.72679797,910.2,908.67,0.69606255]
[1768067724090,2.72679797,910.2,908.68,0.69606255]
[1768067724390,2.72679797,910.34,908.69,0.69606255]
[1768067724592,2.72679797,910.34,908.7,0.69606255]
[1768067724901,2.72679797,910.34,908.71,0.69606255]
[1768067725091,2.72679797,910.34,908.72,0.69606255]
[1768067725289,2.72679797,910.34,908.73,0.69606255]
[1768067725492,2.72679797,910.34,908.74,0.69606255]
[1768067725689,2.72679797,910.35,908.75,0.69606255]
[1768067725888,2.72679797,910.35,908.76,0.69606255]
[1768067726092,2.72679797,910.35,908.77,0.69606255]
[1768067726292,2.72679797,910.35,908.78,0.69606255]
[1768067726494,2.72679797,910.35,908.79,0.69606255]
[1768067726794,2.72679797,910.35,908.65,1.625]
[1768067726795,2.72679797,910.35,908.8,0.69606255]
[1768067726995,2.72679797,910.35,908.81,0.69606255]
[1768067727193,2.72679797,910.35,908.65,1.625]
[1768067727194,2.72679797,910.35,908.82,0.69606255]
[1768067727391,2.72679797,910.35,908.83,0.69606255]
[1768067727691,2.72679797,910.35,908.84,0.69606255]
[1768067727894,2.72679797,910.35,908.65,1.625]
[1768067728089,2.72679797,910.35,908.66,0.69585402]
[1768067728288,2.72679797,910.35,908.67,0.69585402]
[1768067728493,2.72679797,910.35,908.68,0.69585402]
[1768067728690,2.72679797,910.35,908.69,0.69585402]
[1768067728896,2.72679797,910.35,908.7,0.69585402]
[1768067729089,2.72679797,910.35,908.71,0.69585402]
[1768067729291,2.72679797,910.35,908.72,0.69585402]
[1768067729493,2.72679797,910.35,908.73,0.69585402]
[1768067729692,2.72679797,910.35,908.74,0.69585402]
[1768067729895,2.72679797,910.35,908.75,0.69585402]
[1768067730195,2.72679797,910.35,908.76,0.69585402]
[1768067730391,2.72679797,910.35,908.77,0.69585402]
[1768067730693,2.72679797,910.35,908.65,1.625]
[1768067730694,2.72679797,910.35,908.78,0.69585402]
[1768067730891,2.72679797,910.35,908.79,0.69585402]
[1768067731096,2.72679797,910.35,908.8,0.69585402]
[1768067731297,2.72679797,910.35,908.81,0.69585402]
[1768067731498,2.72679797,910.35,908.82,0.69585402]
[1768067731698,2.72679797,910.35,908.83,0.69585402]
[1768067731994,2.72679797,910.35,908.65,1.625]
[1768067732195,2.72679797,910.35,908.66,0.69578061]
[1768067732395,2.72679797,910.35,908.67,0.69578061]
[1768067732697,2.72679797,910.36,908.68,0.69578061]
[1768067732895,2.72679797,910.36,908.69,0.69578061]
[1768067733094,2.72679797,910.36,908.7,0.69578061]
[1768067733298,2.72679797,910.36,908.71,0.69578061]
[1768067733496,2.72679797,910.36,908.72,0.69578061]
[1768067733695,2.72679797,910.36,908.73,0.69578061]
[1768067733995,2.72679797,910.36,908.74,0.69578061]
[1768067734198,2.72679797,910.31,908.75,0.69578061]
[1768067734399,2.72679797,910.31,908.76,0.69578061]
[1768067734599,2.72679797,910.31,908.77,0.69578061]
[1768067734797,2.72679797,910.31,908.78,0.69578061]
[1768067735002,2.72679797,910.31,908.65,1.625]
[1768067735296,2.72679797,910.31,908.66,0.69574901]
[1768067735501,2.72679797,910.31,908.67,0.69574901]
[1768067735802,2.72679797,910.3,908.68,0.69574901]
[1768067736096,2.72679797,910.3,908.69,0.69574901]
[1768067736301,2.72679797,910.3,908.7,0.69574901]
[1768067736498,2.72679797,910.3,908.71,0.69574901]
[1768067736697,2.72679797,910.3,908.72,0.69574901]
[1768067736901,2.72679797,910.3,908.73,0.69574901]
[1768067737197,2.72679797,910.3,908.74,0.69574901]
[1768067737403,2.72679797,910.3,908.75,0.69574901]
[1768067737601,2.72679797,910.3,908.76,0.69574901]
[1768067737801,2.72679797,910.3,908.77,0.69574901]
[1768067738002,2.72679797,910.3,908.78,0.69574901]
[1768067738203,2.72679797,910.3,908.65,1.625]
[1768067738404,2.72679797,910.3,908.66,0.6942253]
[1768067738703,2.72679797,910.3,908.67,0.6942253]
[1768067738900,2.72679797,910.3,908.68,0.6942253]
[1768067739100,2.72679797,910.3,908.69,0.6942253]
[1768067739299,2.72679797,910.3,908.7,0.6942253]
[1768067739503,2.72679797,910.3,908.71,0.6942253]
[1768067739798,2.72679797,910.3,908.72,0.6942253]
[1768067740003,2.72679797,910.3,908.73,0.6942253]
[1768067740300,2.72679797,910.3,908.74,0.6942253]
[1768067740500,2.72679797,910.3,908.75,0.6942253]
[1768067740700,2.72679797,910.3,908.76,0.6942253]
[1768067740905,2.72679797,910.3,908.77,0.6942253]
[1768067741102,2.72679797,910.3,908.78,0.6942253]
[1768067741305,2.72679797,910.3,908.65,1.625]
[1768067741600,2.72679797,910.3,908.66,0.69423271]
[1768067741802,2.72679797,910.3,908.67,0.69423271]
[1768067742006,2.72679797,910.3,908.68,0.69423271]
[1768067742204,2.72679797,910.3,908.69,0.69423271]
[1768067742401,2.72679797,910.3,908.7,0.69423271]
[1768067742700,2.72679797,910.3,908.71,0.69423271]
[1768067743000,2.72679797,910.3,908.72,0.69423271]
[1768067743204,2.72679797,910.3,908.73,0.69423271]
[1768067743504,2.72679797,910.3,908.74,0.69423271]
[1768067743702,2.72679797,910.3,908.75,0.69423271]
[1768067743902,2.72679797,910.3,908.76,0.69423271]
[1768067744102,2.72679797,910.3,908.77,0.69423271]
[1768067744402,2.72679797,910.3,908.78,0.69423271]
[1768067744607,2.72679797,910.31,908.79,0.69423271]
[1768067744807,2.72679797,910.31,908.65,1.625]
[1768067745106,2.72679797,910.31,908.66,0.69425822]
[1768067745306,2.72679797,910.31,908.67,0.69425822]
[1768067745504,2.72679797,910.31,908.68,0.69425822]
[1768067745707,2.72679797,910.31,908.69,0.69425822]
[1768067745907,2.72679797,910.31,908.7,0.69425822]
[1768067746107,2.72679797,910.31,908.71,0.69425822]
[1768067746406,2.72679797,910.31,908.72,0.69425822]
[1768067746606,2.72679797,910.31,908.73,0.69425822]
[1768067746803,2.72679797,910.31,908.74,0.69425822]
[1768067747103,2.72679797,910.31,908.75,0.69425822]
[1768067747404,2.72679797,910.31,908.76,0.69425822]
[1768067747604,2.72679797,910.31,908.77,0.69425822]
[1768067747808,2.72679797,910.31,908.78,0.69425822]
[1768067748003,2.72679797,910.31,908.79,0.69425822]
[1768067748204,2.72679797,910.31,908.65,1.625]
[1768067748407,2.72679797,910.31,908.66,0.69429062]
[1768067748706,2.72679797,910.31,908.67,0.69429062]
[1768067748904,2.72679797,910.31,908.68,0.69429062]
[1768067749107,2.72679797,910.31,908.69,0.69429062]
[1768067749406,2.72679797,910.31,908.7,0.69429062]
[1768067749605,2.72679797,910.31,908.71,0.69429062]
[1768067749803,2.72679797,910.31,908.72,0.69429062]
[1768067750006,2.72679797,910.31,908.73,0.69429062]
[1768067750203,2.72679797,910.31,908.74,0.69429062]
[1768067750408,2.72679797,910.31,908.75,0.69429062]
[1768067750609,2.72679797,910.31,908.76,0.69429062]
[1768067750908,2.72679797,910.31,908.77,0.69429062]
[1768067751104,2.72679797,910.31,908.65,1.625]
[1768067751306,2.72679797,910.28,908.66,0.69436781]
[1768067751506,2.72679797,910.28,908.67,0.69436781]
[1768067751708,2.72679797,910.28,908.68,0.69436781]
[1768067751906,2.72679797,910.25,908.69,0.69436781]
[1768067752109,2.72679797,910.25,908.7,0.69436781]
[1768067752309,2.72679797,910.25,908.65,1.625]
[1768067752609,2.72679797,910.14,908.65,1.625]
[1768067753410,2.72679797,910.15,908.65,1.625]
[1768067754512,2.72679797,910.03,908.65,1.625]
[1768067756613,2.72679797,910.04,908.65,1.625]
[1768067757014,2.72679797,910.0,908.65,1.625]
[1768067757519,2.72679797,910.01,908.65,1.625]
[1768067761921,3.81751716,910.34,908.65,1.625]
[1768067761922,2.72679797,910.02,908.65,1.625]
[1768067762819,2.72679797,910.02,908.58,7.12123728]
[1768067763418,2.72679797,910.03,908.58,7.12123728]
[1768067764522,2.72679797,910.19,908.58,7.12123728]
[1768067765620,2.72679797,910.19,908.59,1.757]
[1768067767625,2.72679797,910.2,908.59,1.757]
[1768067772731,2.72679797,910.21,908.59,1.757]
[1768067774443,2.72679797,910.0,908.59,1.757]
[1768067774832,2.72679797,909.99,908.59,1.757]
[1768067775533,2.72679797,910.0,908.59,1.757]
[1768067776334,2.72679797,910.01,908.59,1.757]
[1768067778432,2.72679797,910.02,908.59,1.757]
[1768067780536,2.72679797,910.03,908.59,1.757]
[1768067781932,0.19142809,909.68,908.59,1.757]
[1768067790142,2.72679797,910.02,908.59,1.757]
[1768067790638,0.19142862,909.67,908.59,1.757]
[1768067797850,0.19142862,909.67,908.06,0.82484001]
[1768067798047,0.19142862,909.67,908.07,0.691986]
[1768067798350,0.19142862,909.67,908.08,0.691986]
[1768067798646,0.19142862,909.67,908.09,0.691986]
[1768067798846,0.19142862,909.67,908.1,0.691986]
[1768067799048,0.19142862,909.67,908.11,0.691986]
[1768067799247,0.19142862,909.67,908.12,0.691986]
[1768067799450,0.19142862,909.67,908.13,0.691986]
[1768067799650,0.19142862,909.67,908.14,0.691986]
[1768067799849,0.19142862,909.67,908.15,0.691986]
[1768067800049,0.19142862,909.67,908.05,0.82484001]
[1768067800050,0.19142862,909.67,908.16,0.691986]
[1768067800261,0.19142862,909.67,908.17,0.691986]
[1768067800551,0.19142862,909.67,908.18,0.691986]
[1768067800848,0.19142862,909.67,908.19,0.691986]
[1768067801052,0.19142862,909.67,908.2,0.691986]
[1768067801253,0.19142862,909.67,908.21,0.691986]
[1768067801452,0.19142862,909.67,908.22,0.691986]
[1768067801651,0.19142862,909.67,908.23,0.691986]
[1768067801853,0.19142862,909.67,908.24,0.691986]
[1768067802051,0.19142862,909.67,908.25,0.691986]
[1768067802252,0.19142862,909.67,908.26,0.691986]
[1768067802453,0.19142862,909.67,908.27,0.691986]
[1768067802658,0.19142862,909.67,908.24,1.664]
[1768067802659,0.19142862,909.67,908.28,0.691986]
[1768067802855,0.19142862,909.67,908.29,0.691986]
[1768067803157,0.19142862,909.67,908.3,0.691986]
[1768067803355,0.19142862,909.67,908.24,1.664]
[1768067803558,0.19142862,909.67,908.25,0.69218463]
[1768067803755,0.19142862,909.67,908.24,1.664]
[1768067803756,0.19142862,909.67,908.26,0.69218463]
[1768067803958,0.19142862,909.67,908.27,0.69218463]
[1768067804159,0.19142862,909.67,908.24,1.664]
[1768067829683,0.19142862,909.67,908.25,0.69223916]
[1768067829884,0.19142862,909.67,908.26,0.69223916]
[1768067830084,0.19142862,909.67,908.27,0.69223916]
[1768067830282,0.19142862,909.67,908.31,0.82484001]
[1768067830480,0.19142862,909.67,908.33,0.82484001]
[1768067830680,0.19142862,909.67,908.34,0.69223916]
[1768067830884,0.19142862,909.67,908.35,0.69223916]
[1768067831086,0.19142862,909.67,908.36,0.69223916]
[1768067831382,0.19142862,909.67,908.37,0.69223916]
[1768067831582,0.19142862,909.67,908.38,0.69223916]
[1768067831782,0.19142862,909.67,908.39,0.69223916]
[1768067831982,0.19142862,909.67,908.4,0.69223916]
[1768067832185,0.19142862,909.67,908.41,0.69223916]
[1768067832482,0.19142862,909.67,908.42,0.69223916]
[1768067832786,0.19142862,909.67,908.43,0.69223916]
[1768067832987,0.19142862,909.67,908.44,0.69223916]
[1768067833186,0.19142862,909.67,908.45,0.69223916]
[1768067833383,0.19142862,909.67,908.46,0.69223916]
[1768067833581,0.19142862,909.67,908.47,0.69223916]
[1768067833788,0.19142862,909.67,908.48,0.69223916]
[1768067833988,0.19142862,909.67,908.49,0.69223916]
[1768067834188,0.19142862,909.67,908.5,0.69223916]
[1768067834387,0.19142862,909.67,908.51,0.69223916]
[1768067834687,0.19142862,909.67,908.52,0.69223916]
[1768067834881,0.19142862,909.67,908.53,0.69223916]
[1768067835082,0.19142862,909.67,908.54,0.69223916]
[1768067835291,0.19142862,909.67,908.55,0.69223916]
[1768067835587,0.19142862,909.67,908.56,0.69223916]
[1768067835787,0.19142862,909.67,908.53,9.10355262]
[1768067836082,0.19142862,909.67,908.54,0.69032457]
[1768067836283,0.19142862,909.67,908.55,0.69032457]
[1768067836483,0.19142862,909.67,908.53,9.10355262]
[1768067836484,0.19142862,909.67,908.56,0.69032457]
[1768067836688,0.19142862,909.67,908.53,9.10355262]
[1768067836888,0.19142862,909.67,908.54,0.69010304]
[1768067837087,0.19142862,909.67,908.55,0.69010304]
[1768067837284,0.19142862,909.67,908.53,9.10355262]
[1768067837486,0.19142862,909.67,908.54,0.6898934]
[1768067837789,0.19142862,909.67,908.53,9.10355262]
[1768067837790,0.19142862,909.67,908.55,0.6898934]
[1768067837989,0.19142862,909.67,908.53,9.10355262]
[1768067838189,0.19142862,909.67,908.54,0.6898934]
[1768067838389,0.19142862,909.67,908.53,9.10355262]
[1768067838590,0.19142862,909.67,908.54,0.6897024]
[1768067838887,0.19142862,909.67,908.53,9.10355262]
[1768067839091,0.19142862,909.67,908.54,0.6897024]
[1768067839288,0.19142862,909.67,908.53,9.10355262]
[1768067840995,0.19142862,909.67,908.54,0.6893152]
[1768067841192,0.19142862,909.67,908.55,0.6893152]
[1768067841393,0.19142862,909.67,908.56,0.6893152]
[1768067841593,0.19142862,909.67,908.57,0.6893152]
[1768067841888,0.19142862,909.67,908.58,0.6893152]
[1768067842099,0.19142862,909.67,908.59,0.6893152]
[1768067842391,0.19142862,909.67,908.53,9.10355262]
[1768067842590,0.19142862,909.67,908.54,0.6888576]
[1768067842792,0.19142862,909.67,908.55,0.6888576]
[1768067842991,0.19142862,909.67,908.56,0.6888576]
[1768067843294,0.19142862,909.67,908.57,0.6888576]
[1768067843493,0.19142862,909.67,908.58,0.6888576]
[1768067843692,0.19142862,909.67,908.53,9.10355262]
[1768067843892,0.19142862,909.67,908.54,0.68865969]
[1768067844093,0.19142862,909.67,908.55,0.68865969]
[1768067844290,0.19142862,909.67,908.56,0.68865969]
[1768067844489,0.19142862,909.67,908.57,0.68865969]
[1768067844693,0.19142862,909.67,908.58,0.68865969]
[1768067844893,0.19142862,909.67,908.59,0.68865969]
[1768067845092,0.19142862,909.67,908.53,9.10355262]
[1768067845292,0.19142862,909.67,908.54,0.68848031]
[1768067845592,0.19142862,909.67,908.55,0.68848031]
[1768067845792,0.19142862,909.67,908.56,0.68848031]
[1768067846096,0.19142862,909.67,908.57,0.68848031]
[1768067846300,0.19142862,909.67,908.53,9.10355262]
[1768067846493,0.19142862,909.67,908.54,0.68816792]
[1768067846691,0.19142862,909.67,908.53,9.10355262]
[1768067846692,0.19142862,909.67,908.55,0.68816792]
[1768067846891,0.19142862,909.67,908.56,0.68816792]
[1768067847093,0.19142862,909.67,908.53,9.10355262]
[1768067847295,0.19142862,909.67,908.54,0.6881719]
[1768067847494,0.19142862,909.67,908.55,0.6881719]
[1768067847797,0.19142862,909.67,908.56,0.6881719]
[1768067848098,0.19142862,909.67,908.53,9.10355262]
[1768067848397,0.19142862,909.67,908.54,0.68805343]
[1768067848596,0.19142862,909.67,908.55,0.68805343]
[1768067848793,0.19142862,909.67,908.53,9.10355262]
[1768067848996,0.19142862,909.67,908.54,0.68794853]
[1768067849193,0.19142862,909.67,908.55,0.68794853]
[1768067849395,0.19142862,909.67,908.53,9.10355262]
[1768067849596,0.19142862,909.67,908.54,0.68785644]
[1768067849797,0.19142862,909.67,908.55,0.68785644]
[1768067849997,0.19142862,909.67,908.53,9.10355262]
[1768067850196,0.19142862,909.67,908.54,0.68785639]
[1768067850397,0.19142862,909.67,908.55,0.68785639]
[1768067850697,0.19142862,909.67,908.53,9.10355262]
[1768067850895,0.19142862,909.67,908.54,0.68777643]
[1768067851097,0.19142862,909.67,908.55,0.68777643]
[1768067851400,0.19142862,909.67,908.53,9.10355262]
[1768067854501,0.19142862,909.67,908.54,0.687859]
[1768067854800,0.19142862,909.67,908.53,9.10355262]
[1768067855002,0.19142862,909.67,908.54,0.68785905]
[1768067855197,0.19142862,909.67,908.53,9.10355262]